[Event "New York Winter Invitational GM-B 2022"]
[Site "New York"]
[Date "2022.01.15"]
[Round "4.5"]
[White "Mandizha, Farai"]
[Black "Tsay, Vincent"]
[Result "0-1"]
[ECO "C13"]
[WhiteElo "2377"]
[BlackElo "2295"]
[Annotator "ChessBase"]
[PlyCount "116"]
[EventDate "2022.01.11"]
[EventType "tourn"]
[EventCountry "USA"]
[SourceTitle "playchess.com"]
[Source "ChessBase"]
[SourceQuality "1"]
[TimeControl "5400+30"]

1. e4 {[%emt 0:00:04]} e6 {[%emt 0:09:45]} 2. d4 {[%emt 0:00:05]} d5 {[%emt 0:00:06]} 3. Nc3 {[%emt 0:00:03]} Nf6 {[%emt 0:01:32]} 4. Bg5 {[%emt 0:00:47]} dxe4 {[%emt 0:00:23]} 5. Nxe4 {[%emt 0:00:23]} Nbd7 {[%emt 0:00:07]} 6. Nf3 {[%emt 0:01:17]} h6 {[%emt 0:00:08]} 7. Bh4 {[%emt 0:02:52]} c5 {[%emt 0:04:26]} 8. dxc5 {[%emt 0:10:37]} Qa5+ {[%emt 0:01:28]} 9. Qd2 {[%emt 0:00:07]} Qxd2+ {[%emt 0:00:10]} 10. Nfxd2 {[%emt 0:00:09]} Nxe4 {[%emt 0:01:04]} 11. Nxe4 {[%emt 0:00:04]} f5 {[%emt 0:01:50]} 12. Be2 {[%emt 0:10:19]} Kf7 {[%emt 0:01:13]} 13. Nd6+ {[%emt 0:18:24]} Bxd6 {[%emt 0:00:14]} 14. cxd6 {[%emt 0:00:04]} g5 {[%emt 0:00:08]} 15. Bg3 {[%emt 0:01:03]} f4 {[%emt 0:00:12]} 16. O-O-O {[%emt 0:00:32]} fxg3 {[%emt 0:00:59]} 17. hxg3 {[%emt 0:02:08]} Nf6 {[%emt 0:01:31]} 18. f4 {[%emt 0:02:36]} Bd7 {[%emt 0:01:52]} 19. Rhe1 {[%emt 0:03:38]} Rac8 {[%emt 0:03:00]} 20. Rd4 {[%emt 0:00:31]} b5 {[%emt 0:04:23]} 21. Bd3 {[%emt 0:02:29]} Rc5 {[%emt 0:01:50]} 22. f5 {[%emt 0:06:16]} Re8 {[%emt 0:02:10]} 23. fxe6+ {[%emt 0:00:44]} Rxe6 {[%emt 0:02:00]} 24. Rf1 {[%emt 0:01:28]} Kg7 {[%emt 0:06:44]} 25. a4 {[%emt 0:12:34]} a6 {[%emt 0:02:03]} 26. axb5 {[%emt 0:01:21]} axb5 {[%emt 0:00:06]} 27. Rd1 {[%emt 0:01:46]} Ree5 {[%emt 0:01:33]} 28. c4 {[%emt 0:04:56]} bxc4 {[%emt 0:03:22]} 29. Bxc4 {[%emt 0:00:01]} Re2 {[%emt 0:12:00]} 30. b3 {[%emt 0:00:43]} Bf5 {[%emt 0:14:24]} 31. R1d2 {[%emt 0:01:21]} Rxd2 {[%emt 0:03:51]} 32. Kxd2 {[%emt 0:01:26]} Kf8 {[%emt 0:01:13]} 33. Kc3 {[%emt 0:02:19]} Ke8 {[%emt 0:00:44]} 34. Kb4 {[%emt 0:00:33]} Re5 {[%emt 0:01:27]} 35. Rd1 {[%emt 0:00:50]} Be4 {[%emt 0:01:52]} 36. Bb5+ {[%emt 0:03:35]} Kd8 {[%emt 0:00:07]} 37. Re1 {[%emt 0:03:06]} Rd5 {[%emt 0:04:11]} 38. d7 {[%emt 0:00:28]} Re5 {[%emt 0:00:53]} 39. g4 {[%emt 0:07:38]} Nxd7 {[%emt 0:01:11]} 40. Rh1 {[%emt 0:00:01]} Re6 {[%emt 0:01:20]} 41. Rd1 {[%emt 0:00:11]} Bc6 {[%emt 0:00:49]} 42. Bc4 {[%emt 0:00:02]} Rf6 {[%emt 0:01:19]} 43. Rd2 {[%emt 0:00:53]} Kc7 {[%emt 0:01:11]} 44. Re2 {[%emt 0:00:11]} Rf4 {[%emt 0:03:24]} 45. Re6 {[%emt 0:00:01]} Bxg2 {[%emt 0:00:47]} 46. Rxh6 {[%emt 0:00:11]} Rxg4 {[%emt 0:00:52]} 47. Kc3 {[%emt 0:00:04]} Rf4 {[%emt 0:01:10]} 48. Kd2 {[%emt 0:02:34]} Bc6 {[%emt 0:01:13]} 49. Ke3 {[%emt 0:00:38]} Ne5 {[%emt 0:00:28]} 50. Rh7+ {[%emt 0:00:06]} Kb6 {[%emt 0:00:16]} 51. Be2 {[%emt 0:00:35]} Ng4+ {[%emt 0:02:05]} 52. Kd2 {[%emt 0:00:04]} Rd4+ {[%emt 0:01:05]} 53. Kc3 {[%emt 0:00:45]} Re4 {[%emt 0:00:37]} 54. Bd3 {[%emt 0:00:16]} Re3 {[%emt 0:00:42]} 55. Kd2 {[%emt 0:00:08]} Rxd3+ {[%emt 0:00:31]} 56. Kxd3 {[%emt 0:00:12]} Be4+ {[%emt 0:00:02]} 57. Kxe4 {[%emt 0:00:13]} Nf6+ {[%emt 0:00:04]} 58. Kf5 {[%emt 0:00:12]} Nxh7 {[%emt 0:05:23]} 0-1